[Event "CCT Chesscom Classic-D1 2024"]
[Site "Online"]
[Date "2024.05.11"]
[Round "51"]
[White "Firouzja, Alireza"]
[Black "Sarana, Alexey"]
[Result "1-0"]
[ECO "A06"]
[WhiteElo "2738"]
[BlackElo "2706"]
[Annotator "TA"]
[PlyCount "149"]
[EventDate "2024.05.08"]
[EventType "k.o."]
[EventCountry "NET"]
[SourceTitle "playchess.com"]
[Source "ChessBase"]
[SourceQuality "1"]
[TimeControl "600+2"]

{[%evp 69,149,-154,-154,-167,-167,-187,-154,-154,-154,-187,0,-188,0,-154,-154,-154,-154,-184,-184,-191,-184,-191,-191,-186,-189,-193,-149,-149,-149,-186,-186,-166,-149,-165,-89,-149,-114,-149,-149,-153,0,-62,-41,-43,-68,-29,25,-34,-26,-35,15,9,15,8,194,12,22,16,89,89,596,610,658,648,727,725,867,839,880,869,924,881,882,855,1044,1022,1637,1600,6106,5808,6007,2293]} 1. Nf3 {[%emt 0:00:02]} d5 {[%emt 0:00:04]} 2. b3 {[%emt 0:00:01]} c5 {[%emt 0:00:02]} 3. e3 {[%emt 0:00:02]} Nc6 {[%emt 0:00:01]} 4. Bb5 {[%emt 0:00:02]} f6 {[%emt 0:00:02]} 5. c4 {[%emt 0:00:34]} d4 {[%emt 0:00:08]} 6. b4 {[%emt 0:00:01]} e5 {[%emt 0:00:36]} 7. d3 {[%emt 0:00:25]} Bd7 {[%emt 0:01:30]} 8. Bxc6 {[%emt 0:01:32]} Bxc6 {[%emt 0:00:07]} 9. b5 {[%emt 0:00:01]} Bd7 {[%emt 0:00:04]} 10. O-O {[%emt 0:00:19]} Ne7 {[%emt 0:00:16]} 11. Re1 {[%emt 0:00:30]} Kf7 {[%emt 0:00:05]} 12. exd4 {[%emt 0:00:20]} exd4 {[%emt 0:00:32]} 13. Nbd2 {[%emt 0:01:53]} h6 {[%emt 0:01:28]} 14. Ne4 {[%emt 0:00:48]} Ng6 {[%emt 0:00:18]} 15. h4 {[%emt 0:00:23]} h5 {[%emt 0:00:58]} 16. Neg5+ {[%emt 0:00:04]} Kg8 {[%emt 0:00:04]} 17. Ne6 {[%emt 0:00:03]} Qc8 {[%emt 0:00:36]} 18. Nf4 {[%emt 0:01:32]} Bf5 {[%emt 0:00:21]} 19. Nxg6 {[%emt 0:00:11]} Bxg6 {[%emt 0:00:00]} 20. Bf4 {[%emt 0:01:16]} Qf5 {[%emt 0:00:02]} 21. Re4 {[%emt 0:00:00]} Qg4 {[%emt 0:01:23]} 22. g3 {[%emt 0:00:34]} Bxe4 {[%emt 0:00:11]} 23. dxe4 {[%emt 0:00:00]} Re8 {[%emt 0:00:03]} 24. Qd3 {[%emt 0:00:02]} g6 {[%emt 0:00:49]} 25. Re1 {[%emt 0:00:07]} Rh7 {[%emt 0:00:17]} 26. e5 {[%emt 0:00:05]} Qf5 {[%emt 0:00:13]} 27. Qxf5 {[%emt 0:00:05]} gxf5 {[%emt 0:00:01]} 28. Rd1 {[%emt 0:00:02]} fxe5 {[%emt 0:00:04]} 29. Nxe5 {[%emt 0:00:00]} Rhe7 {[%emt 0:00:12]} 30. Nd3 {[%emt 0:00:01]} Re2 {[%emt 0:00:02]} 31. Bd2 {[%emt 0:00:02]} Bd6 {[%emt 0:00:13]} 32. Kg2 {[%emt 0:00:01]} Kf7 {[%emt 0:00:03]} 33. Kf3 {[%emt 0:00:01]} R2e4 {[%emt 0:00:01]} 34. a4 {[%emt 0:00:01]} Kf6 {[%emt 0:00:02]} 35. a5 {[%emt 0:00:03]} Ke6 {[%emt 0:00:04]} 36. Rb1 {[%emt 0:00:04]} Kd7 {[%emt 0:00:01]} 37. Rd1 {[%emt 0:00:01]} R8e7 {[%emt 0:00:01]} 38. Bg5 {[%emt 0:00:01]} R7e6 {[%emt 0:00:01]} 39. Bf4 {[%emt 0:00:03]} Re8 {[%emt 0:00:13]} 40. Bd2 $1 {[%emt 0:00:02]} R8e7 {[%emt 0:00:01]} 41. Bg5 $1 {[%emt 0:00:01]} Rg7 {[%emt 0:00:01]} 42. Bh6 {[%emt 0:00:02]} Rg8 {[%emt 0:00:01]} 43. Bd2 {[%emt 0:00:03]} Rge8 {[%emt 0:00:02]} 44. Bg5 {[%emt 0:00:03]} Re2 {[%emt 0:00:01]} 45. Bd2 {[%emt 0:00:00]} R8e6 {[%emt 0:00:05]} 46. Nc1 {[%emt 0:00:02]} R2e4 {[%emt 0:00:06]} 47. Nd3 {[%emt 0:00:00]} Rf6 {[%emt 0:00:02]} 48. Bg5 {[%emt 0:00:02]} Rf8 {[%emt 0:00:01]} 49. Bh6 {[%emt 0:00:01]} Ra8 {[%emt 0:00:01]} 50. Rb1 {[%emt 0:00:04]} Kc7 {[%emt 0:00:02]} 51. Bd2 {[%emt 0:00:03]} Rb8 {[%emt 0:00:03]} (51... b6 $19 52. Rb2 Kb7) 52. Ra1 {[%emt 0:00:06]} (52. Nf4 $142) 52... a6 {[%emt 0:00:01]} 53. Rb1 {[%emt 0:00:00] [#]} Ra8 $1 {[%emt 0:00:03]} 54. Rb2 {[%emt 0:00:02]} Rb8 {[%emt 0:00:05]} ({Better is} 54... b6 $17 {Threatens to win with ...Kd7.} 55. axb6+ Kb7 (55... Kxb6 56. bxa6+ Kc6 57. Ra2 $11)) 55. Rb1 $1 $15 {[%emt 0:00:01]} Ree8 {[%emt 0:00:02]} 56. Nf4 $1 {[%emt 0:00:03]} axb5 {[%emt 0:00:03]} 57. Rxb5 {[%emt 0:00:02]} Ra8 {[%emt 0:00:04]} ({Black should play} 57... b6 58. axb6+ Kc6 59. Nxh5 Rh8 (59... Rxb6 60. Ng7 $17)) 58. Nd5+ {[%emt 0:00:04]} (58. Nxh5 $11 d3 59. Nf4) 58... Kb8 $15 {[%emt 0:00:01]} 59. Nf6 {[%emt 0:00:02]} Re7 {[%emt 0:00:01]} (59... Rh8 $1 $15) 60. Nxh5 $11 {[%emt 0:00:01]} Ra6 {[%emt 0:00:03]} 61. Nf6 {[%emt 0:00:01]} Re6 $2 {[%emt 0:00:00]} (61... Rc6 $11) 62. Nd5 $2 {[%emt 0:00:01]} (62. Nd7+ $18 Ka7 63. Nxc5 Bxc5 64. Rxc5) 62... Kc8 {[%emt 0:00:01]} 63. h5 {[%emt 0:00:01]} Bf8 {[%emt 0:00:02]} (63... Re8 $11 {keeps the balance.}) 64. Bf4 {[%emt 0:00:03]} Bh6 $2 {[%emt 0:00:01][%mdl 8192]} (64... Rac6 $16 {prevents the worst.}) 65. Nc7 $18 {[%emt 0:00:02]} Bxf4 {[%emt 0:00:05]} 66. Nxe6 {[%emt 0:00:01]} (66. Nxa6 bxa6 67. Rxc5+ Bc7 68. Rxf5 d3 $14) 66... Bd2 {[%emt 0:00:05]} 67. Rxc5+ {[%emt 0:00:02]} Kb8 {[%emt 0:00:01]} 68. Nxd4 {[%emt 0:00:01]} Bxa5 {[%emt 0:00:01]} 69. Rxf5 {[%emt 0:00:01]} Kc8 {[%emt 0:00:03]} 70. Rf8+ {[%emt 0:00:03]} Kd7 {[%emt 0:00:00]} 71. Rf7+ {[%emt 0:00:01]} Kc8 {[%emt 0:00:01]} 72. Nf5 {[%emt 0:00:01]} Bc3 {[%emt 0:00:02]} 73. h6 {[%emt 0:00:01]} Ra3 {[%emt 0:00:03]} 74. h7 {[%emt 0:00:02]} Kd8 {[%emt 0:00:01]} 75. Kg4 {[%emt 0:00:02]} 1-0

[Event "CCT Chesscom Classic-D1 2024"]
[Site "Online"]
[Date "2024.05.11"]
[Round "51"]
[White "Sarana, Alexey"]
[Black "Firouzja, Alireza"]
[Result "1/2-1/2"]
[ECO "D32"]
[WhiteElo "2706"]
[BlackElo "2738"]
[Annotator "TA"]
[PlyCount "114"]
[EventDate "2024.05.08"]
[EventType "k.o."]
[EventCountry "NET"]
[SourceTitle "playchess.com"]
[Source "ChessBase"]
[SourceQuality "1"]
[TimeControl "600+2"]

{[%evp 26,114,-11,-3,0,-9,-9,-29,-20,-41,-24,-19,22,22,20,19,20,4,37,30,46,41,31,30,42,41,38,34,41,45,43,0,41,0,43,36,30,30,49,10,22,17,17,22,25,25,31,17,26,0,0,0,10,0,14,28,35,35,42,35,52,50,63,50,50,50,35,25,29,21,31,30,39,12,23,15,17,15,27,0,0,0,0,0,0,0,0,0,0,0,0]} 1. d4 {[%emt 0:00:02]} d5 {[%emt 0:00:03]} 2. c4 {[%emt 0:00:02]} e6 {[%emt 0:00:00]} 3. Nc3 {[%emt 0:00:01]} c5 {[%emt 0:00:01]} 4. cxd5 {[%emt 0:00:09]} exd5 {[%emt 0:00:01]} 5. Nf3 {[%emt 0:00:07]} Nc6 {[%emt 0:00:01]} 6. e3 {[%emt 0:00:23]} Nf6 {[%emt 0:00:10]} 7. Be2 {[%emt 0:00:08] 7.Bb5 is the hot move.} cxd4 {[%emt 0:00:08]} 8. Nxd4 {[%emt 0:00:02]} Bd6 {[%emt 0:00:17]} 9. Ncb5 {[%emt 0:00:29] D32: Tarrasch Defence: Sidelines and lines without g3.} Bb8 {[%emt 0:00:23]} 10. Bd2 {[%emt 0:00:24]} O-O {[%emt 0:00:30]} 11. Rc1 $146 {[%emt 0:00:05]} ({Predecessor:} 11. Qc2 Ne5 12. Bb4 Re8 13. Rc1 Bg4 14. Bxg4 Nfxg4 15. Nf5 Qb6 16. a4 a6 17. Bc5 Qxc5 18. Qxc5 {0-1 Stotika,V (2330)-Potkin,V (2295) St Petersburg White Nights op 1998 (6)}) 11... Bd7 {[%emt 0:00:07]} 12. Nxc6 {[%emt 0:00:06]} bxc6 {[%emt 0:00:09]} 13. Nd4 {[%emt 0:00:01]} Ne4 {[%emt 0:00:29]} 14. Bf3 {[%emt 0:00:28]} (14. Nxc6 $2 Qf6 15. O-O Bxc6 $19) 14... Qh4 {[%emt 0:01:05]} 15. Bxe4 {[%emt 0:02:02]} Qxe4 {[%emt 0:00:02]} 16. Qf3 {[%emt 0:00:04]} (16. O-O {keeps more tension.} Rc8 17. Bb4 a5 18. Bc5) 16... Qg6 {[%emt 0:00:15]} 17. h3 {[%emt 0:00:11]} Be5 {[%emt 0:00:26]} 18. O-O {[%emt 0:00:11]} Bxd4 {[%emt 0:00:56]} 19. exd4 {[%emt 0:00:00]} Rfe8 {[%emt 0:00:05]} 20. Rfe1 {[%emt 0:00:11]} h6 {[%emt 0:00:04]} 21. Re3 {[%emt 0:00:13]} Re4 {[%emt 0:00:10]} 22. Rxe4 {[%emt 0:00:11]} Qxe4 {[%emt 0:00:45]} 23. Qxe4 {[%emt 0:00:31]} dxe4 {[%emt 0:00:01]} 24. Rc5 {[%emt 0:00:01]} Rb8 {[%emt 0:00:20]} 25. b3 {[%emt 0:00:01]} Rb5 {[%emt 0:00:03]} 26. Rc4 {[%emt 0:00:01]} a6 {[%emt 0:00:05]} 27. Ra4 {[%emt 0:00:04]} Bc8 {[%emt 0:00:01]} 28. Rc4 {[%emt 0:00:03]} Bd7 {[%emt 0:00:02]} 29. Ra4 {[%emt 0:00:02]} Bc8 {[%emt 0:00:01]} 30. Kf1 {[%emt 0:00:01]} g5 {[%emt 0:00:09]} 31. Rc4 {[%emt 0:00:23]} Bd7 {[%emt 0:00:02]} 32. h4 {[%emt 0:00:01]} f6 {[%emt 0:00:11]} 33. hxg5 {[%emt 0:00:03]} hxg5 {[%emt 0:00:01]} 34. Ke2 {[%emt 0:00:14]} Kf7 {[%emt 0:00:02]} 35. Ke3 {[%emt 0:00:19]} f5 {[%emt 0:00:25]} 36. g3 {[%emt 0:00:00]} Kg6 {[%emt 0:00:14]} 37. Bb4 {[%emt 0:00:25]} Kh5 {[%emt 0:00:19]} 38. Bd6 {[%emt 0:00:03]} Kg6 {[%emt 0:00:18]} 39. Ra4 {[%emt 0:00:31]} Bc8 {[%emt 0:00:02]} 40. g4 {[%emt 0:00:15]} fxg4 {[%emt 0:00:24]} 41. Kxe4 {[%emt 0:00:03]} Rf5 {[%emt 0:00:08]} 42. Bg3 {[%emt 0:00:04]} Rd5 {[%emt 0:01:24]} 43. Rb4 {[%emt 0:00:13]} Bf5+ {[%emt 0:00:09]} 44. Ke3 {[%emt 0:00:01]} Rb5 {[%emt 0:00:01]} 45. Rc4 {[%emt 0:00:29]} Bd7 {[%emt 0:00:02]} 46. Rc1 {[%emt 0:00:41]} Rf5 {[%emt 0:00:06]} 47. Kd3 {[%emt 0:00:20]} Kf7 {[%emt 0:00:22]} 48. Rh1 {[%emt 0:00:06]} Kg7 {[%emt 0:00:22]} 49. Ke4 {[%emt 0:00:06]} Be6 {[%emt 0:00:06]} 50. Rc1 {[%emt 0:00:02]} Ra5 {[%emt 0:00:02]} 51. Be5+ {[%emt 0:01:01]} (51. Rxc6 $2 {perishes.} Bd5+ 52. Kf5 Bxc6+ $19) 51... Kf7 {[%emt 0:00:02]} 52. Ke3 {[%emt 0:00:02]} (52. Rxc6 $2 {too greedy.} Bd5+ (52... Rxa2 53. Bg3 $11) 53. Kf5 Bxc6 $19) 52... Rxa2 {[%emt 0:00:03]} 53. Rxc6 {[%emt 0:00:01]} Bxb3 {[%emt 0:00:02]} 54. Rc7+ {[%emt 0:00:04]} Ke6 {[%emt 0:00:05]} 55. Rc6+ {[%emt 0:00:00]} Kf7 {[%emt 0:00:05]} 56. Rc5 {[%emt 0:00:01]} Ke6 {[%emt 0:00:01]} 57. Rc6+ {[%emt 0:00:07]} Kf7 {[%emt 0:00:01]} 1/2-1/2

[Event "CCT Chesscom Classic-D1 2024"]
[Site "Online"]
[Date "2024.05.11"]
[Round "51"]
[White "Ivic, Velimir"]
[Black "Nepomniachtchi, Ian"]
[Result "0-1"]
[ECO "C42"]
[WhiteElo "2596"]
[BlackElo "2770"]
[Annotator "TA"]
[PlyCount "56"]
[EventDate "2024.05.08"]
[EventType "k.o."]
[EventCountry "NET"]
[SourceTitle "playchess.com"]
[Source "ChessBase"]
[SourceQuality "1"]
[TimeControl "600+2"]

{[%evp 13,56,3,20,14,20,12,15,6,17,-12,-1,-31,-19,0,7,-13,-16,-47,0,0,0,0,0,0,0,-14,22,25,22,3,0,0,152,145,352,-110,-112,-366,-351,-418,-399,-850,-850,-29988,-29989]} 1. e4 {[%emt 0:00:02]} e5 {[%emt 0:00:03]} 2. Nf3 {[%emt 0:00:01]} Nf6 {[%emt 0:00:00]} 3. Nxe5 {[%emt 0:00:01]} d6 {[%emt 0:00:01]} 4. Nf3 {[%emt 0:00:00]} Nxe4 {[%emt 0:00:01]} 5. Nc3 {[%emt 0:00:01]} Nxc3 {[%emt 0:00:02]} 6. dxc3 {[%emt 0:00:00][%cal Bd2c3,Bc3c4][%mdl 32]} Be7 {[%emt 0:00:01]} 7. Be3 {[%emt 0:00:00]} Nd7 {[%emt 0:00:00]} 8. Qd2 {[%emt 0:00:01]} O-O {[%emt 0:00:02]} 9. O-O-O {[%emt 0:00:01]} Nf6 {[%emt 0:00:00]} 10. Bd3 {[%emt 0:00:03] The position is equal.} Re8 {[%emt 0:00:01]} 11. c4 {[%emt 0:00:02]} a6 {[%emt 0:00:30][%cal Ob7b5]} 12. Kb1 {[%emt 0:00:14]} c5 {[%emt 0:00:08][%cal Ob7b5]} 13. Rhe1 {[%emt 0:00:17]} b5 {[%emt 0:00:06]} 14. Bg5 {[%emt 0:00:24]} Be6 {[%emt 0:00:13]} 15. Qf4 {[%emt 0:00:22]} bxc4 {[%emt 0:00:58]} (15... Qa5 $15) 16. Bxc4 $11 {[%emt 0:00:06]} Bxc4 {[%emt 0:00:49]} 17. Qxc4 {[%emt 0:00:02]} d5 {[%emt 0:00:03]} 18. Qd3 {[%emt 0:00:41]} (18. Bxf6 $2 dxc4 19. Rxd8 Raxd8 $19) 18... Rb8 {[%emt 0:00:18]} 19. Ne5 {[%emt 0:01:09]} Qb6 {[%emt 0:00:16] Prevents Nc6.} 20. b3 {[%emt 0:00:02] Strongly threatening Bxf6.} c4 {[%emt 0:00:17]} 21. Qf3 {[%emt 0:00:10]} (21. Qf5 $5 Qb5 22. Nd7 Nxd7 23. Bxe7 $14 (23. Rxe7 Rxe7 24. Bxe7 Nb6 $16)) 21... cxb3 {[%emt 0:01:22]} 22. axb3 {[%emt 0:00:04]} Bb4 $2 {[%emt 0:00:21]} ({Black should try} 22... Qc7 $1 $11) 23. Re3 $1 $16 {[%emt 0:00:51] Bxf6 is the strong threat.} d4 $2 {[%emt 0:00:17] [#]} (23... Re6 $16) 24. Re2 $2 {[%emt 0:00:53]} (24. Bxf6 $1 $18 dxe3 25. Bxg7 Kxg7 26. Qg4+ (26. Qxe3 $2 Qxe3 27. fxe3 Rxe5 $19) (26. Qg3+ Qg6 $18) 26... Qg6 27. Nxg6 hxg6 28. fxe3) 24... Bc3 $40 {[%emt 0:00:10][%mdl 128] Black goes for the king.} 25. Nc4 {[%emt 0:00:18][%mdl 8192] [#] Against Qa5} (25. Bd2 $17 {is the only way for White.} d3 26. Nxd3 (26. cxd3 $2 Qxb3+ 27. Kc1 Qb2#) 26... Rxe2 27. Qxe2 Bxd2 28. Rxd2) 25... Qb5 $1 $19 {[%emt 0:00:09][%csl LRc4,LRg5]} 26. Bxf6 {[%emt 0:00:35]} Rxe2 {[%emt 0:00:05]} 27. Qg4 $2 {[%emt 0:02:52] [#]} (27. Qxe2 $2 {loses.} Qa4 $19) ({Much worse is} 27. Bxd4 Rxc2 $19 (27... Qxc4 28. Bxc3 $17) (27... Qxc4 28. Bxc3 $17)) (27. Qg3 g6 28. Bxd4 Rxc2 29. Qxb8+ Qxb8 30. Kxc2 Bxd4 31. Rxd4) 27... g6 $1 {[%emt 0:00:03]} 28. Bxd4 {[%emt 0:01:39]} (28. Qg3 Rxc2) 28... Qxc4 {[%emt 0:00:06] Weighted Error Value: White=0.99/Black=0.24 (precise) .  Loses game:     	White=1     	Black=1      Missed win:     	White=1     	---        Mistake:       	White=1     	Black=2      Inaccurate:     	White=3     	Black=1      OK:         	White=6     	Black=8      Best:        	---       	Black=1      Strong:       	White=1     	Black=2} 0-1

[Event "CCT Chesscom Classic-D1 2024"]
[Site "Online"]
[Date "2024.05.12"]
[Round "52"]
[White "Nepomniachtchi, Ian"]
[Black "Duda, Jan-Krzysztof"]
[Result "0-1"]
[ECO "B53"]
[WhiteElo "2770"]
[BlackElo "2734"]
[Annotator "TA"]
[PlyCount "64"]
[EventDate "2024.05.08"]
[EventType "k.o."]
[EventCountry "NET"]
[SourceTitle "playchess.com"]
[Source "ChessBase"]
[SourceQuality "1"]
[TimeControl "600+2"]

{[%evp 9,63,10,15,11,7,-5,7,2,16,0,0,0,10,0,0,-12,0,-2,-6,-10,0,0,0,0,0,-33,-18,-47,-6,-51,-50,-84,-83,-93,-80,-359,-379,-377,-368,-421,-435,-435,-418,-436,-432,-450,-449,-460,-462,-444,-64,-73,0,-440,-445,-29999]} 1. e4 {[%emt 0:00:07]} c5 {[%emt 0:00:07]} 2. Nf3 {[%emt 0:00:01]} d6 {[%emt 0:00:01]} 3. Nc3 {[%emt 0:00:02]} Nf6 {[%emt 0:00:01]} 4. d4 {[%emt 0:00:01]} cxd4 {[%emt 0:00:00]} 5. Qxd4 {[%emt 0:00:01]} Nc6 {[%emt 0:00:41]} 6. Qe3 {[%emt 0:00:02]} g6 {[%emt 0:00:06]} 7. Bc4 {[%emt 0:00:02]} Bg7 {[%emt 0:00:04]} 8. h3 {[%emt 0:00:01] The position is equal.} O-O {[%emt 0:00:05]} 9. O-O {[%emt 0:00:02]} a6 {[%emt 0:00:56]} 10. a4 {[%emt 0:00:02]} Bd7 {[%emt 0:00:07]} 11. Qe2 {[%emt 0:01:00]} Rc8 {[%emt 0:00:07]} 12. Bf4 {[%emt 0:00:03]} Nh5 {[%emt 0:01:15]} 13. Be3 {[%emt 0:00:04]} Ne5 {[%emt 0:00:27]} 14. Nxe5 {[%emt 0:00:20]} Bxe5 {[%emt 0:00:00]} 15. Nd5 {[%emt 0:00:23]} e6 {[%emt 0:00:18]} 16. Nb6 {[%emt 0:00:22]} Rc6 $36 {[%emt 0:00:02][%mdl 2048] Black fights for an advantage.} 17. a5 {[%emt 0:00:39]} Bxb2 {[%emt 0:00:11]} 18. Ra2 {[%emt 0:00:44]} Bg7 {[%emt 0:00:30]} 19. Bb3 {[%emt 0:00:08]} Rc3 {[%emt 0:00:31] Threatens to win with ...Bb5.} 20. Rd1 {[%emt 0:00:03]} Bb5 {[%emt 0:00:10]} 21. Qd2 {[%emt 0:00:03][%cal Oe3g5]} Qh4 {[%emt 0:00:21]} 22. f3 {[%emt 0:03:09][%mdl 8192]} (22. Na4 $17 Rc6 23. c4 Bxc4 24. Bxc4 Rxc4 25. Nb6) 22... Be5 $19 {[%emt 0:00:21]} 23. Bf2 {[%emt 0:00:03] Prevents Qg3.} Qf6 {[%emt 0:00:46] [#] And now ...Nf4 would win.} 24. Ba4 {[%emt 0:00:03]} Nf4 {[%emt 0:00:40]} (24... Bf4 25. Qe1 Rc7 (25... Bxa4 26. Bd4 $15) 26. Bxb5 axb5 27. g4 $15) 25. Bxb5 {[%emt 0:00:02] Black must now prevent Bf1.} Qg5 {[%emt 0:00:03][%csl Gf4][%cal Rg5g2]} (25... axb5 $2 26. Bg3 Rd8 27. Kh2 $17) 26. g3 {[%emt 0:00:50]} (26. Bf1 $2 Nxh3+ 27. Kh1 Nxf2+ 28. Kg1 Qh4 $19 (28... Nxd1 29. Qxg5 Bd4+ 30. Kh2 $16) (28... Nxd1 29. Qxg5 Bd4+ 30. Kh2 $16)) 26... Rxf3 {[%emt 0:00:55]} (26... axb5 $2 27. h4 Nh3+ 28. Kg2 Qxd2 29. Rxd2 Nxf2 30. Kxf2 $17) (26... Nxh3+ 27. Kg2 Nf4+ (27... axb5 28. Qxg5 Nxg5 29. f4 $14) (27... Qxd2 28. Rxd2 Nxf2 29. Bc4 $15) 28. Kf1 Rxf3 29. gxf4 $19) 27. Bf1 {[%emt 0:00:02]} Rxg3+ {[%emt 0:00:26]} 28. Bxg3 {[%emt 0:00:02]} Qxg3+ {[%emt 0:00:00]} 29. Kh1 {[%emt 0:00:08]} Qf3+ $2 {[%emt 0:00:41]} (29... Nxh3 $19 {( -> ...Qg1#)} 30. Bxh3 Qxh3+ 31. Kg1 Qg4+ 32. Kh1 Qf3+ (32... Qxe4+ $2 33. Qg2 $19) 33. Kg1 Bf4 (33... Qxe4 34. Ra4 $11)) 30. Kg1 $15 {[%emt 0:00:03] [#]} Qg3+ $2 {[%emt 0:00:01][%mdl 8192]} ({Worse is} 30... Qxe4 31. Ra3 $18) ({Reject} 30... Nxh3+ 31. Bxh3 Qxh3 32. Qg2 $11) (30... f5 $1 $17 {[%cal Rf5e4]} 31. Nd7 Qg3+ (31... Nxh3+ 32. Bxh3 Qxh3 33. Nxe5 $16) 32. Kh1 Nxh3) 31. Kh1 $1 $19 {[%emt 0:00:02]} Nxh3 {[%emt 0:00:02][%csl Gh3][%cal Rg3g1]} 32. c4 {[%emt 0:00:03]} (32. Qg2 $19 Nf2+ 33. Kg1 Nxd1 34. Qxg3 Bxg3 35. c4) 32... Qg1# {[%emt 0:00:03] Weighted Error Value: White=0.38/Black=0.21 (precise) .  Loses game:     	White=1     	---        Missed win:     	---       	Black=1      Mistake:       	White=1     	Black=1      Inaccurate:     	White=3     	Black=1      OK:         	White=8     	Black=11     Best:        	White=3     	Black=6      Strong:       	White=1     	---} 0-1

[Event "CCT Chesscom Classic-D1 2024"]
[Site "Online"]
[Date "2024.05.12"]
[Round "52"]
[White "Firouzja, Alireza"]
[Black "Lazavik, Denis"]
[Result "1-0"]
[ECO "A06"]
[WhiteElo "2738"]
[BlackElo "2572"]
[Annotator "TA"]
[PlyCount "41"]
[EventDate "2024.05.08"]
[EventType "k.o."]
[EventCountry "NET"]
[SourceTitle "playchess.com"]
[Source "ChessBase"]
[SourceQuality "1"]
[TimeControl "600+2"]

{[%evp 9,41,-21,-26,-21,-4,-12,-6,-15,0,-11,-16,-31,54,41,81,75,70,37,89,95,86,78,196,226,197,211,243,240,217,-163,-168,-175,947,967]} 1. Nf3 {[%emt 0:00:06]} d5 {[%emt 0:00:05]} 2. b3 {[%emt 0:00:01]} Nf6 {[%emt 0:00:02]} 3. Bb2 {[%emt 0:00:01]} e6 {[%emt 0:00:00]} 4. e3 {[%emt 0:00:03]} Be7 {[%emt 0:00:02]} 5. g4 {[%emt 0:00:03]} O-O {[%emt 0:00:22]} 6. g5 {[%emt 0:00:05]} Ne4 {[%emt 0:00:04]} 7. h4 {[%emt 0:00:05]} c5 {[%emt 0:00:15]} 8. Nc3 {[%emt 0:00:01] The position is equal.} Nxc3 {[%emt 0:00:32]} 9. dxc3 {[%emt 0:00:01]} Nc6 {[%emt 0:00:59]} 10. c4 {[%emt 0:00:52]} b6 {[%emt 0:00:40]} (10... d4 $15) 11. Qd2 {[%emt 0:00:22]} dxc4 {[%emt 0:02:17]} 12. Qc3 {[%emt 0:00:14][%csl Gb2][%cal Rc3g7]} (12. bxc4 $6 Qc7 $11) 12... f6 {[%emt 0:00:03]} 13. Bxc4 {[%emt 0:00:10]} Na5 {[%emt 0:00:12]} ({Black should try} 13... Rb8 $14) 14. Rd1 $16 {[%emt 0:01:51]} Qe8 {[%emt 0:00:23]} 15. Rg1 $36 {[%emt 0:00:21][%mdl 2048] White is in control. White is much more active. The black rooks are passive.} Kh8 {[%emt 0:00:59] [#]} (15... Nxc4 $16 16. Qxc4 Kh8) 16. h5 $1 $18 {[%emt 0:01:06][%mdl 512]} Qxh5 {[%emt 0:00:43]} (16... Nxc4 $2 17. h6 g6 (17... Nxb2 $2 18. hxg7+ Kg8 19. gxf8=Q+ Kxf8 20. gxf6 $18) 18. Qxc4 $18) 17. gxf6 {[%emt 0:00:11]} Rxf6 {[%emt 0:00:02]} (17... Bxf6 18. Qxf6 gxf6 19. Bxf6+ Rxf6 20. Rd8+) 18. Be2 {[%emt 0:00:19]} Ba6 {[%emt 0:02:07] [#] And now ...Bxe2 would win.} 19. Rxg7 $4 {[%emt 0:02:47][%mdl 8192]} Kxg7 $19 {[%emt 0:00:27]} 20. Rd7 {[%emt 0:00:01] [#]} Qf7 {[%emt 0:00:23][%mdl 8192]} 21. Ng5 {[%emt 0:00:16] Weighted Error Value: White=0.42/Black=0.29 (precise) .  Missed win:     	White=1     	Black=1      Mistake:       	---       	Black=3      Inaccurate:     	White=1     	Black=1      OK:         	White=4     	Black=3      Best:        	White=3     	Black=1      Brilliant:      	White=1     	---} 1-0